Cogmind - Beta 10.1 *** ADVENTURER MODE // 2020.09.26 @ 11:52:28 Player: jjjdanny Result: Destroyed by S-27 Virus with Autogun Performance ------------- Evolutions (3) 1500 Regions Visited (6) 1200 Robots Destroyed (50) 250 Value Destroyed (1859) 1859 Prototype IDs (2) 40 Alien Tech Used (0) 0 Bonus (0) 0 TOTAL SCORE: 4849 Bonus ------- None Cogmind --------- Core Integrity 0/700 Matter 300/300 Energy 100/100 System Corruption 2% Temperature Cool (0) Movement Core (50) Location -7/Lower Caves Parts ------- > --- POWER (1) -------- (None) > --- PROPULSION (4) --- (None) > --- UTILITY (6) ------ (None) > --- WEAPON (2) ------- (None) > --- INVENTORY (4) ---- Small Storage Unit Peak State ------------ > --- POWER ------------ Light Angular Momentum Engine > --- PROPULSION ------- Aluminum Leg Improved Aluminum Leg Carbon-fiber Leg Improved Carbon-fiber Leg > --- UTILITY ---------- Improved Heat Sink Improved Heat Sink Cooling System Medium Storage Unit Maneuvering Thrusters Insulated Plating > --- WEAPON ----------- Beam Rifle Beam Rifle > --- INVENTORY -------- Deuterium Engine Cold Fusion Reactor Aluminum Leg Aluminum Leg Cooling System Beam Rifle Particle Gun Plasma Cannon [Rating: 36] Favorites ----------- Power Light Angular Momentum Engine Engine Light Angular Momentum Engine Power Core Light Nuclear Core Reactor Cold Fusion Reactor Propulsion Aluminum Leg Leg Aluminum Leg Utility Medium Storage Unit Device Cooling System Storage Medium Storage Unit Processor Targeting Computer Protection Insulated Plating Weapon Beam Rifle Energy Gun Beam Rifle Energy Cannon Plasma Cannon Ballistic Gun Light Assault Rifle Build | -11 -10 -9 -9 -8 -7 -7 ------- Run | Scr Mat Mat Sto Mat Fac Low Slots Evolved 6 | . . 2 . 2 2 . Power . | . . . . . . . Propulsion 2 | . . 2 . . . . Utility 4 | . . . . 2 2 . Weapon . | . . . . . . . Parts Attached 55 | 6 1 3 16 16 5 8 Power 8 | 1 1 . 3 1 . 2 Engine 5 | 1 . . 2 1 . 1 Core 1 | . 1 . . . . . Reactor 2 | . . . 1 . . 1 Propulsion 19 | 2 . 2 5 7 1 2 Treads . | . . . . . . . Leg 19 | 2 . 2 5 7 1 2 Wheel . | . . . . . . . Hover . | . . . . . . . Flight . | . . . . . . . Utility 15 | 1 . 1 4 5 3 1 Device 9 | . . 1 2 2 3 1 Storage 2 | 1 . . 1 . . . Processor 1 | . . . 1 . . . Hackware . | . . . . . . . Protection 3 | . . . . 3 . . Artifact . | . . . . . . . Weapon 13 | 2 . . 4 3 1 3 Energy Gun 9 | 2 . . 2 2 1 2 Energy Cannon 2 | . . . . 1 . 1 Ballistic Gun 2 | . . . 2 . . . Ballistic Cannon . | . . . . . . . Launcher . | . . . . . . . Special Weapon . | . . . . . . . Impact Weapon . | . . . . . . . Slashing Weapon . | . . . . . . . Piercing Weapon . | . . . . . . . Special Melee Weapon . | . . . . . . . Unidentified Prototypes 2 | . . . 2 . . . Parts Lost 36 | . . . 10 4 1 21 Power 4 | . . . 1 . . 3 Propulsion 9 | . . . 3 . . 6 Utility 10 | . . . 2 1 . 7 Weapon 13 | . . . 4 3 1 5 Highest Loss Streak 11 | . . . 4 3 1 11 Average Slot Usage (%) 94 | . 85 88 96 97 99 87 Engine 5 | . 7 . 7 2 7 6 Core 1 | . 6 11 2 . . . Reactor 2 | . . . 1 6 . . Leg 36 | . 28 44 42 36 30 27 Device 13 | . . . 9 12 29 26 Storage 9 | . 14 11 11 9 7 6 Protection 4 | . . . . 12 7 5 Energy Gun 10 | . 28 22 8 6 15 11 Ballistic Gun 8 | . . . 12 11 . . Naked Turns 8 | . . . . . . 8 Heaviest Build 41 | 12 12 13 25 41 32 31 Greatest Support 56 | 20 20 40 40 48 56 56 Greatest Overweight (x) 2 | . . . . . . 2 Average Overweight (x) . | . . . . . . . Largest Inventory Capacity 8 | 6 6 6 8 8 8 8 Average Capacity 7 | 5 6 6 6 8 8 7 Most Carried 8 | 3 5 6 8 8 8 7 Average Carried 6 | 1 3 3 6 7 7 5 Final Capacity 8 | 6 6 6 8 8 8 4 Final Carried 8 | 2 5 5 8 8 8 1 Class Distribution -------------------- 81% | Scavenger-Mutant 18% | Mutant Dominant Class ---------------- Mutant | -10/Materials Mutant | -9/Materials Scavenger-Mutant | -9/Storage Scavenger-Mutant | -8/Materials Scavenger-Mutant | -7/Factory Scavenger-Mutant | -7/Lower Caves Resources | -11 -10 -9 -9 -8 -7 -7 ----------- Run | Scr Mat Mat Sto Mat Fac Low Matter Collected 1060 | 215 55 30 255 404 45 56 Remotely . | . . . . . . . Salvage Created 2278 | . 133 52 793 1002 73 225 Parts 126 | . 9 4 57 45 5 6 Haulers Intercepted 1 | . . . 1 . . . Recyclers Shooed 1 | . . . . 1 . . Parts Field Recycled . | . . . . . . . Retrieved Matter . | . . . . . . . Parts Self-Destructed 10 | . . . . . . 10 Prevented . | . . . . . . . Kills | -11 -10 -9 -9 -8 -7 -7 ------- Run | Scr Mat Mat Sto Mat Fac Low Combat Hostiles Destroyed 42 | . 2 1 17 16 1 5 Guns 36 | . 2 1 17 14 1 1 Cannons 4 | . . . . 1 . 3 Classes Destroyed 8 | . 2 1 4 1 . . Builder 1 | . . . 1 . . . Hauler 1 | . . . 1 . . . Recycler 1 | . . . . 1 . . Watcher 5 | . 2 . 1 2 . . Swarmer 3 | . . . 3 . . . Grunt 24 | . 2 . 6 11 . 5 Brawler 1 | . . . 1 . . . Sentry 14 | . . 1 7 5 1 . Best Kill Streak 5 | . 3 1 5 4 1 4 Combat Bots Only 5 | . 2 1 5 4 1 5 Max Kills in Single Turn 2 | . 1 1 2 1 1 1 Gunslinging . | . . . . . . . Exploded . | . . . . . . . Melee . | . . . . . . . Uniques/NPCs Destroyed . | . . . . . . . Combat | -11 -10 -9 -9 -8 -7 -7 -------- Run | Scr Mat Mat Sto Mat Fac Low Damage Taken 4118 | . 25 48 888 1001 114 2042 Core 968 | . . . 100 165 17 686 Absorbed by Shields . | . . . . . . . Core Remaining (%) 86 | 100 100 . 75 70 . . Volleys Fired 191 | . 10 3 66 75 3 34 Largest 2 | . 2 1 2 2 2 2 Hottest 121 | . 90 50 115 116 112 121 Shots Fired 338 | . 18 3 121 150 6 40 Gun 308 | . 18 3 121 142 6 18 Cannon 30 | . . . . 8 . 22 Launcher . | . . . . . . . Special . | . . . . . . . Kinetic 184 | . . . 81 103 . . Thermal 154 | . 18 3 40 47 6 40 Explosive . | . . . . . . . Electromagnetic . | . . . . . . . Robot Hit Streak 53 | . 7 5 21 53 5 15 Robot Miss Streak 3 | . 1 . 3 3 1 2 Penetration Max . | . . . . . . . Secondary Targets 5 | . . . 2 2 . 1 Max Gunslinging Chain 1 | . . . 1 1 . 1 Shots Hit Robots 279 | . 14 3 93 128 5 36 Core Hits 108 | . 7 2 35 50 4 10 Critical Hits . | . . . . . . . Critical Kills . | . . . . . . . Critical Parts Destroyed . | . . . . . . . Melee Attacks . | . . . . . . . Impact . | . . . . . . . Slashing . | . . . . . . . Piercing . | . . . . . . . Sneak Attacks . | . . . . . . . Combat Hostiles . | . . . . . . . Follow-up Attacks . | . . . . . . . Damage Inflicted 3748 | . 169 39 1108 1597 88 747 Guns 3101 | . 169 39 1108 1457 88 240 Cannons 626 | . . . . 140 . 486 Explosions . | . . . . . . . Melee . | . . . . . . . Ramming 21 | . . . . . . 21 Kinetic 1747 | . . . 757 990 . . Thermal 1980 | . 169 39 351 607 88 726 Explosive . | . . . . . . . Electromagnetic . | . . . . . . . Impact . | . . . . . . . Slashing . | . . . . . . . Piercing . | . . . . . . . Highest Corruption 3 | . 1 . 3 . . 2 Average Corruption 2 | . 1 . 3 . . 2 Corruption Purged . | . . . . . . . Effects 14 | . . . 14 . . . Message Errors 4 | . . . 4 . . . Matter Fused 3 | . . . 3 . . . Heat Flow Errors 2 | . . . 2 . . . Data Loss (minor) 3 | . . . 3 . . . Weapon Failures 2 | . . . 2 . . . Overload Shots . | . . . . . . . Overflow Damage 12 | . . . . . . 12 Projectiles 12 | . . . . . . 12 Explosions . | . . . . . . . Melee . | . . . . . . . Knockbacks . | . . . . . . . Impact . | . . . . . . . Kinetic . | . . . . . . . Secondary . | . . . . . . . Self-Inflicted Damage 8 | . . . . . . 8 Shots . | . . . . . . . Rammed 13 | . . . . . . 13 Targets Rammed 13 | . . . . . . 13 Kicked . | . . . . . . . Crushed . | . . . . . . . Highest Temperature 230 | . 128 33 230 219 . . Average Temperature 68 | . 52 20 59 93 . . Received Heat Transfer 1839 | . 18 18 261 693 48 801 Siege Activations . | . . . . . . . Robots Corrupted . | . . . . . . . Combat Hostiles . | . . . . . . . Parts Fried . | . . . . . . . Impact Corruptions . | . . . . . . . Robots Melted 2 | . . . . 1 . 1 Combat Hostiles 2 | . . . . 1 . 1 Parts Melted 7 | . 1 . 1 3 . 2 Heat Transferred 4702 | . 458 111 889 1480 222 1542 Parts Sabotaged . | . . . . . . . Parts Stolen . | . . . . . . . Parts Stripped . | . . . . . . . Power Chain Reactions . | . . . . . . . Missiles Intercepted . | . . . . . . . Alert | -11 -10 -9 -9 -8 -7 -7 ------- Run | Scr Mat Mat Sto Mat Fac Low Peak Influence 340 | . 94 78 222 340 154 . Initial 119 | . . 33 27 68 119 . Average 130 | . 49 48 110 209 121 . Maximum Alert Level 1 | . . . 1 1 . . Low Security (%) 77 | 100 100 100 88 40 100 . Level 1 22 | . . . 11 59 . . Level 2 . | . . . . . . . Level 3 . | . . . . . . . Level 4 . | . . . . . . . Level 5 . | . . . . . . . High Security . | . . . . . . . Max Security . | . . . . . . . Squads Dispatched 4 | . . . 3 1 . . Investigation 3 | . . . 2 1 . . Extermination . | . . . . . . . Reinforcement 1 | . . . 1 . . . Assault . | . . . . . . . Garrison . | . . . . . . . Intercept . | . . . . . . . Construction Impeded . | . . . . . . . Haulers Reinforced . | . . . . . . . Stealth | -11 -10 -9 -9 -8 -7 -7 --------- Run | Scr Mat Mat Sto Mat Fac Low Distress Signals 2 | . 1 . . 1 . . Communications Jammed . | . . . . . . . Distress Signals . | . . . . . . . Times Spotted 68 | . 6 1 24 20 4 13 Peak Tracking Total 8 | . 4 1 5 4 5 8 Tactical Retreats 2 | . . . 1 1 . . Traps | -11 -10 -9 -9 -8 -7 -7 ------- Run | Scr Mat Mat Sto Mat Fac Low Traps Triggered 5 | . 2 . 2 1 . . Indirectly . | . . . . . . . Trap Hack Attempts . | . . . . . . . Triggered . | . . . . . . . Disarmed . | . . . . . . . Reprogrammed . | . . . . . . . Reused . | . . . . . . . Traps Extracted . | . . . . . . . Installed . | . . . . . . . Triggered . | . . . . . . . Machines | -11 -10 -9 -9 -8 -7 -7 ---------- Run | Scr Mat Mat Sto Mat Fac Low Machines Disabled . | . . . . . . . Max in Single Turn . | . . . . . . . Machines Sabotaged . | . . . . . . . Garrisons Compromised . | . . . . . . . Overloaded Fab Kills . | . . . . . . . Fab Network Shutdowns . | . . . . . . . Hacking | -11 -10 -9 -9 -8 -7 -7 --------- Run | Scr Mat Mat Sto Mat Fac Low Machines Accessed 7 | . 1 . 6 . . . Terminals 7 | . 1 . 6 . . . Fabricators . | . . . . . . . Repair Stations . | . . . . . . . Recycling Units . | . . . . . . . Scanalyzers . | . . . . . . . Garrison Access . | . . . . . . . Total Hacks 9 | . 1 . 8 . . . Successful 6 | . 1 . 5 . . . Failed 3 | . . . 3 . . . Catastrophic 1 | . . . 1 . . . Database Lockouts . | . . . . . . . Manual . | . . . . . . . Terminals 9 | . 1 . 8 . . . Fabricators . | . . . . . . . Repair Stations . | . . . . . . . Recycling Units . | . . . . . . . Scanalyzers . | . . . . . . . Garrison Access . | . . . . . . . Terminal Hacks 6 | . 1 . 5 . . . Robot Analysis 1 | . 1 . . . . . Open Door 5 | . . . 5 . . . Fabricator Hacks . | . . . . . . . Repair Station Hacks . | . . . . . . . Recycling Unit Hacks . | . . . . . . . Scanalyzer . | . . . . . . . Garrison Access Hacks . | . . . . . . . Unauthorized Hacks . | . . . . . . . Terminals . | . . . . . . . Fabricators . | . . . . . . . Repair Stations . | . . . . . . . Recycling Units . | . . . . . . . Scanalyzers . | . . . . . . . Garrison Access . | . . . . . . . Data Cores Recovered . | . . . . . . . Used . | . . . . . . . Hacking Detections 2 | . . . 2 . . . Full Trace Events 1 | . . . 1 . . . Feedback Events . | . . . . . . . Feedback Blocked . | . . . . . . . Robot Schematics Acquired . | . . . . . . . Robots Built . | . . . . . . . Matter . | . . . . . . . Time . | . . . . . . . Total Robot Build Rating . | . . . . . . . Part Schematics Acquired . | . . . . . . . Parts Built . | . . . . . . . Matter . | . . . . . . . Time . | . . . . . . . Total Part Build Rating . | . . . . . . . Parts Repaired . | . . . . . . . Time . | . . . . . . . Parts Recycled . | . . . . . . . Recycled Matter . | . . . . . . . Retrieved Matter . | . . . . . . . Retrieved Components . | . . . . . . . Parts Scanalyzed . | . . . . . . . Part Schematics Acquired . | . . . . . . . Parts Damaged . | . . . . . . . Bothacking | -11 -10 -9 -9 -8 -7 -7 ------------ Run | Scr Mat Mat Sto Mat Fac Low Used RIF Installer . | . . . . . . . Robots Hacked . | . . . . . . . Non-combat . | . . . . . . . Combat . | . . . . . . . Robot Hacks Applied . | . . . . . . . Relay Couplers Released . | . . . . . . . Robots Rewired . | . . . . . . . Allies Hacked . | . . . . . . . Hacks Repelled . | . . . . . . . Allies | -11 -10 -9 -9 -8 -7 -7 -------- Run | Scr Mat Mat Sto Mat Fac Low Total Allies . | . . . . . . . Largest Group . | . . . . . . . Highest-Rated Group . | . . . . . . . Highest-Rated Ally . | . . . . . . . Total Orders . | . . . . . . . Ally Attacks . | . . . . . . . Total Damage . | . . . . . . . Kills . | . . . . . . . Allies Corrupted . | . . . . . . . Allies Melted . | . . . . . . . Intel | -11 -10 -9 -9 -8 -7 -7 ------- Run | Scr Mat Mat Sto Mat Fac Low Robot Analysis Total 1 | . 1 . . . . . Derelict Logs Recovered . | . . . . . . . Drone Launches . | . . . . . . . Drone Recoveries . | . . . . . . . Exploration | -11 -10 -9 -9 -8 -7 -7 ------------- Run | Scr Mat Mat Sto Mat Fac Low Turns Passed 2874 | 64 209 75 1168 732 237 389 Spaces Moved 1764 | 45 144 53 732 371 181 238 Core 7 | 5 . . . . . 2 Treads . | . . . . . . . Legs 1757 | 40 144 53 732 371 181 236 Wheels . | . . . . . . . Hover . | . . . . . . . Flight . | . . . . . . . Fastest Speed 50 | 50 120 120 120 120 120 50 Average Speed 119 | 112 120 120 120 120 120 119 Slowest Speed 150 | 120 120 120 120 120 120 150 Overloaded Moves . | . . . . . . . Propulsion Burnouts . | . . . . . . . Robots Hopped . | . . . . . . . Cave-ins Triggered . | . . . . . . . Exploration Rate (%) 27 | 3 27 6 86 28 7 34 Regions Visited 6 Branch Regions 2 Pre-discovered Areas . | . . . . . . . Known Exits Taken . | . . . . . . . Unknown Exits Taken 6 | 1 1 1 1 1 1 . Scrap Searched 1 | . . . . . . 1 Spaces Dug . | . . . . . . . Terrain Destroyed . | . . . . . . . Melee . | . . . . . . . Projectile . | . . . . . . . AOE . | . . . . . . . Terrain Rammed . | . . . . . . . Walls Destroyed . | . . . . . . . Machines Disabled . | . . . . . . . Actions | -11 -10 -9 -9 -8 -7 -7 --------- Run | Scr Mat Mat Sto Mat Fac Low Total 2209 | 58 162 61 909 528 195 296 Wait 98 | . 1 . 64 33 . . Move 1758 | 44 143 52 731 370 180 238 Hop . | . . . . . . . Pick Up 65 | 8 5 3 22 20 5 2 Fast Attach . | . . . . . . . Attach 36 | 6 . 3 10 6 3 8 Detach . | . . . . . . . Swap 19 | . 1 . 6 10 2 . Drop 28 | . 2 . 9 14 2 1 Fire 191 | . 10 3 66 75 3 34 Melee . | . . . . . . . Ram 13 | . . . . . . 13 Kick . | . . . . . . . Crush . | . . . . . . . Escape Stasis . | . . . . . . . Rewire 1 | . . . 1 . . . Trap . | . . . . . . . Miscellaneous . | . . . . . . . Route ------- -11/Scrapyard -10/Materials -9/Materials -9/Storage -8/Materials -7/Factory -7/Lower Caves History --------- Turn | Location | Event 11 | -11/Scrapyard | Discovered new exit (range 16) 65 | -11/Scrapyard | Entered Materials 263 | -10/Materials | Discovered new exit (range 7) 274 | -10/Materials | Entered another Materials area 274 | -9/Materials | Evolved 2 slots: Propulsion x2 315 | -9/Materials | Build established: Mutant 319 | -9/Materials | Discovered new exit (range 13) 349 | -9/Materials | Entered Storage 787 | -9/Storage | Lost 4 parts (1n3w) 943 | -9/Storage | Lost 3 parts (2u1w) 1239 | -9/Storage | Build established: Scavenger-Mutant 1474 | -9/Storage | Discovered new exit (range 16) 1517 | -9/Storage | Entered Materials 1517 | -8/Materials | Evolved 2 slots: Utility x2 2025 | -8/Materials | Lost 3 parts (3w) 2238 | -8/Materials | Discovered new exit (range 9) 2249 | -8/Materials | Entered Factory 2249 | -7/Factory | Evolved 2 slots: Utility x2 2466 | -7/Factory | Discovered new exit (range 3) 2486 | -7/Factory | Entered Lower Caves 2726 | -7/Lower Caves | Spotted B-75 Beast 2835 | -7/Lower Caves | Attracted the attention of an 0b10 base 2842 | -7/Lower Caves | Lost 11 parts (1p3n4u3w) 2858 | -7/Lower Caves | Core integrity fell below 50% 2871 | -7/Lower Caves | Core integrity fell below 20% 2875 | -7/Lower Caves | Destroyed by S-27 Virus with Autogun Last Messages --------------- Penetrated by Slug. Machine disabled. Slammed into Y-64 Sentinel. G-47 Trooper destroyed. Acquired Particle Gun. Slug penetrates Terminal. Terminal disabled. Med. Storage Unit destroyed. S-27 Virus destroyed. Particle Gun destroyed. Slug penetrates Machine. Machine disabled. Slammed into Y-64 Sentinel. Aluminum Leg fries itself beyond repair. Slammed into Y-64 Sentinel. Destabilizing: System corrupted (+2). VTOL Module fries itself beyond repair. Slammed into Y-64 Sentinel. Slug penetrates Wall. Slammed into Y-64 Sentinel. Map ----- +----------------------------------------------------+ | ?????????????????????????????????????????????????? | | ?????????????????????????????????????????????????? | | ?????????????????????????????????????????????????? | | ?????????????????????????????????????????????????? | | ?????????????????????????????????????????????????? | | ?????????????????????????????????????????????????? | | ?????????????????????????????????????????????????? | | ?????????????????????????????????????????????????? | | ?????????????????????????????????????????????????? | | ???????????????????????????#?????????????????????? | | ??????????????????????????? ?????????????????????? | | ??????????????????????????? ?????????????????????? | | ??????????????????????####+"#???#????????????????? | | ??????????????????????? # ? "????????????????? | | ?????????????????? ??? ? "????????????????? | | ?????????????????? ???? """#?????????????? | | ?????????????????? ???? " #?????????????? | | ?????????????????# #???# "" #?????????????? | | ????????????????## ##### " +?????????????? | | ????????????????# # "" +???????????? | | ???????????????## + " #??????????? | | ??????????????? + ? = "#??????????? | | ???????????????? # ?? %%% "#???????????? | | ????????????????# ##%####% s "#????????????? | | ????????????????# # %%%sss% "#?????????????? | | ????????????????# # %%%@Y% "#??????????#### | | ??????????????### #"""""% ""#?????????## | | ?????????????## ########++###### #????? | | ?????????????# #????? | | ?????????????# #???????# | | ?????????????### ###### #########??????????# | | ???????????????## ## #####?????????????# | | ????????????????# ### ##????????????# | | ???????????????# ### #####????????# | | ?????????????? #?# #????????# | | ?????????????## #?# #????????? | | ??????????????## ##?# # # ##??####??? | | ???????????????## #??## ## # ##??## ##?? | | ????????????????###????## ## # #??## ### | | ????????????????????????## ## # #?## | | ?????????????????####????# ## # ### | | ????????????????## ##### ## # | | ????????????????# ## ## # | | ??????????????????# ## # # | | ??????????????????## ## ##### # | | ???????????????????# ### ############## | | ??????????????????## ### #?????????## # | | ?????????????????## #??????????### | | ????????????????## ##????????????? | | ????????????????# ##?????????????? | +----------------------------------------------------+ Best States ------------- Heat Dissipation 106 Energy Generation 18 Energy Capacity 290 Matter Stores 300 Matter Capacity 300 Sight Range 16 Terrain Scan Density 10 Armor Coverage 300 Resistance: KI 40 Resistance: TH 20 Resistance: EX 20 Resistance: EM 35 Resistance: I 20 Resistance: S 20 Resistance: P 20 Evasion (%) 43 Targeting Accuracy 5 Offensive Hacking 10 Item Schematics ----------------- None Robot Schematics ------------------ None Fabricated ------------ Nothing Alien Tech Used ----------------- None Achievements -------------- None Challenges ------------ None Game ------ Seed DirtyPlasmaRipper Manual? 0 Play Time 00:29:45 Cumulative 16.6 hours Start 2020.09.26 @ 11:25:58 End 2020.09.26 @ 11:52:28 Sessions 1 Manual Loads 0 Difficulty Adventurer Special Mode None Game No. 22 Rogue 0 Adventurer 22 Explorer 0 Win Type - Total 0 Types 0/0/0/0/0/0/0/0/0 Lore% 22 Gallery% 23 Achievement% 17 Wizard Run 0 Options --------- ASCII 0 Keyboard 0 Movement Numpad Keybinds 0 Fullscreen 0 Font 12/Smallcaps Map View 83x54 Tactical HUD 0 Map Filters NONE Filters NONE Steam 1 RUN: 11008230-eb9d-4961-9e33-61d1434899ab